Cogmind - Beta 14 @@@ ROGUE MODE // 2024.08.11 @ 18:21:39 Player: Gaffe Result: Destroyed by D-53 Grenadier with Mini Grenade Launcher Performance ------------- Evolutions (0) 0 Regions Visited (2) 400 Robots Destroyed (14) 70 Value Destroyed (188) 188 Prototype IDs (0) 0 Alien Tech Used (0) 0 Bonus (0) 0 TOTAL SCORE: 658 Bonus ------- None Cogmind --------- Core Integrity 0/250 Matter 278/300 Energy 65/100 System Corruption 5% Temperature Cool (0) Movement Rolling (80) Location -10/Mines Parts ------- > --- POWER (1) -------- (None) > --- PROPULSION (2) --- Wheel > --- UTILITY (2) ------ Small Storage Unit Core Shielding > --- WEAPON (2) ------- EM Pulse Gun EM Pulse Gun > --- INVENTORY (8) ---- Light Ion Engine Medium Laser Light Assault Rifle Blade Trap Blade Trap Peak State ------------ > --- POWER ------------ Light Ion Engine > --- PROPULSION ------- Wheel Wheel > --- UTILITY ---------- Small Storage Unit Core Shielding > --- WEAPON ----------- Small Laser Light Assault Rifle > --- INVENTORY -------- Light Ion Engine EM Pulse Gun EM Pulse Gun Medium Laser Light Assault Rifle Blade Trap Blade Trap Blade Trap [Rating: 7] Favorites ----------- Power Light Ion Engine Engine Light Ion Engine Propulsion Wheel Wheel Wheel Utility Small Storage Unit Storage Small Storage Unit Protection Core Shielding Weapon Small Laser Energy Gun Small Laser Ballistic Gun Light Assault Rifle Build | -11 -10 -10 ------- Run | Yrd Mat Min Slots Evolved . | . . . Power . | . . . Propulsion . | . . . Utility . | . . . Weapon . | . . . Parts Attached 17 | 5 7 5 Power 4 | 1 1 2 Engine 4 | 1 1 2 Core . | . . . Reactor . | . . . Propulsion 5 | 2 3 . Treads . | . . . Leg . | . . . Wheel 5 | 2 3 . Hover . | . . . Flight . | . . . Utility 2 | . 1 1 Device . | . . . Storage 1 | . 1 . Processor . | . . . Hackware . | . . . Protection 1 | . . 1 Artifact . | . . . Weapon 6 | 2 2 2 Energy Gun 5 | 2 1 2 Energy Cannon . | . . . Ballistic Gun 1 | . 1 . Ballistic Cannon . | . . . Launcher . | . . . Special Weapon . | . . . Impact Weapon . | . . . Slashing Weapon . | . . . Piercing Weapon . | . . . Special Melee Weapon . | . . . Unidentified Prototypes . | . . . Parts Lost 5 | . . 5 Power 2 | . . 2 Propulsion 1 | . . 1 Utility . | . . . Weapon 2 | . . 2 Highest Loss Streak 4 | . . 4 To Critical Strikes . | . . . Average Slot Usage (%) 80 | . 77 88 Engine 13 | . 14 11 Wheel 25 | . 24 28 Storage 11 | . 9 14 Protection 1 | . . 5 Energy Gun 16 | . 17 14 Ballistic Gun 11 | . 10 14 Peak Build Rating 7 | 5 6 7 Average Rating 5 | 4 5 6 On Entrance 3 | . 5 6 Naked Turns . | . . . Heaviest Build 11 | 5 10 11 Greatest Support 20 | 20 20 20 Greatest Overweight (x) . | . . . Average Overweight (x) . | . . . Largest Inventory Capacity 8 | 5 8 8 Average Capacity 6 | 5 7 8 Most Carried 8 | 4 4 8 Average Carried 2 | 1 1 6 Final Capacity 8 | 5 8 8 Final Carried 5 | 1 4 5 Class Distribution -------------------- 100% | Mutant Dominant Class ---------------- Mutant | -10/Materials Mutant | -10/Mines Resources | -11 -10 -10 ----------- Run | Yrd Mat Min Matter Collected 351 | 250 70 31 Remotely . | . . . Salvage Created 266 | 32 165 69 Parts 25 | 1 17 7 Haulers Intercepted . | . . . Recyclers Shooed 1 | . 1 . Parts Field Recycled . | . . . Retrieved Matter . | . . . Parts Self-Destructed . | . . . Prevented . | . . . Kills | -11 -10 -10 ------- Run | Yrd Mat Min Combat Hostiles Destroyed 16 | 1 10 5 Guns 16 | 1 10 5 Classes Destroyed 3 | 1 1 1 Swarmer 12 | . 9 3 Grunt 2 | 1 1 . Assembled 2 | . . 2 Best Kill Streak 4 | 1 4 3 Combat Bots Only 4 | 1 4 3 Max Kills in Single Turn 2 | 1 2 2 Gunslinging 1 | . 1 1 Exploded . | . . . Melee . | . . . Uniques/NPCs Destroyed . | . . . Combat | -11 -10 -10 -------- Run | Yrd Mat Min Hostile Shots Fired 107 | 4 64 39 Missed 30 | . 18 12 Damage Taken 902 | 43 381 478 Core 259 | . 98 161 Absorbed by Shields . | . . . Redirected to Shielding 21 | . . 21 Regen/Repaired (Parts) 91 | . 91 . Core Remaining (%) 100 | 100 . . Volleys Fired 49 | 3 30 16 Largest 2 | 2 2 2 Hottest 80 | 80 80 60 Shots Fired 98 | 6 60 32 Gun 98 | 6 60 32 Cannon . | . . . Launcher . | . . . Special . | . . . Kinetic 28 | . 12 16 Thermal 70 | 6 48 16 Explosive . | . . . Electromagnetic . | . . . Robot Hit Streak 10 | 4 5 10 Robot Miss Streak 4 | 1 4 4 Penetration Max . | . . . Secondary Targets 6 | . 3 3 Max Gunslinging Chain 1 | . 1 1 Shots Hit Robots 51 | 5 27 19 Core Hits 24 | 2 12 10 Critical Kills . | . . . Critical Parts Destroyed . | . . . Critical Strikes . | . . . Melee Attacks . | . . . Impact . | . . . Slashing . | . . . Piercing . | . . . Sneak Attacks . | . . . Combat Hostiles . | . . . Follow-up Attacks . | . . . Damage Inflicted 574 | 52 340 182 Guns 574 | 52 340 182 Cannons . | . . . Explosions . | . . . Melee . | . . . Ramming . | . . . Kinetic 137 | . 54 83 Thermal 437 | 52 286 99 Explosive . | . . . Electromagnetic . | . . . Impact . | . . . Slashing . | . . . Piercing . | . . . Highest Corruption 5 | . . 5 Average Corruption 5 | . . 5 Corruption Purged . | . . . Corruption Blocked . | . . . Overload Shots . | . . . Overflow Damage . | . . . Projectiles . | . . . Explosions . | . . . Melee . | . . . Knockbacks . | . . . Impact . | . . . Kinetic . | . . . Secondary . | . . . Self-Inflicted Damage . | . . . Shots . | . . . Rammed . | . . . Targets Rammed . | . . . Kicked . | . . . Crushed . | . . . Highest Temperature 210 | 78 210 45 Average Temperature 56 | 45 71 19 Received Heat Transfer 120 | 24 36 60 Siege Activations . | . . . Robots Corrupted . | . . . Combat Hostiles . | . . . Parts Fried . | . . . Impact Corruptions . | . . . Robots Melted . | . . . Combat Hostiles . | . . . Parts Melted 2 | . 2 . Heat Transferred 1000 | 125 650 225 Parts Sabotaged . | . . . Parts Stolen . | . . . Parts Stripped . | . . . Power Chain Reactions . | . . . Alert | -11 -10 -10 ------- Run | Yrd Mat Min Peak Influence 258 | 20 258 160 Initial 100 | . . 100 Average 94 | 16 168 153 Maximum Alert Level 1 | . 1 . Low Security (%) 88 | 100 67 100 Level 1 11 | . 32 . Level 2 . | . . . Level 3 . | . . . Level 4 . | . . . Level 5 . | . . . High Security . | . . . Max Security . | . . . Squads Dispatched 1 | . 1 . Investigation . | . . . Extermination . | . . . Reinforcement 1 | . 1 . Assault . | . . . Garrison . | . . . Intercept . | . . . Searches Triggered . | . . . Construction Impeded . | . . . Haulers Reinforced . | . . . Active Scanning Responses . | . . . Cargo Convoy Interrupts . | . . . Stealth | -11 -10 -10 --------- Run | Yrd Mat Min Distress Signals . | . . . Communications Jammed . | . . . Distress Signals . | . . . Times Spotted 42 | 1 12 29 Peak Tracking Total 18 | 1 5 18 Tactical Retreats 2 | . . 2 Traps | -11 -10 -10 ------- Run | Yrd Mat Min Traps Triggered . | . . . Indirectly . | . . . Trap Hack Attempts . | . . . Triggered . | . . . Disarmed . | . . . Reprogrammed . | . . . Reused . | . . . Traps Extracted . | . . . Installed . | . . . Triggered . | . . . Most Traps Carried 3 | . . 3 Machines | -11 -10 -10 ---------- Run | Yrd Mat Min Machines Disabled . | . . . Max in Single Turn . | . . . Machines Repaired . | . . . Machines Dismantled . | . . . Machines Sabotaged . | . . . Overloaded Fab Kills . | . . . Hacking | -11 -10 -10 --------- Run | Yrd Mat Min Machines Accessed 2 | . 2 . Terminals . | . . . Fabricators . | . . . Repair Stations 1 | . 1 . Recycling Units 1 | . 1 . Scanalyzers . | . . . Garrison Access . | . . . Total Hacks 10 | . 10 . Successful 9 | . 9 . Failed 1 | . 1 . Catastrophic . | . . . Database Lockouts . | . . . Manual . | . . . Terminals . | . . . Fabricators . | . . . Repair Stations 7 | . 7 . Recycling Units 3 | . 3 . Scanalyzers . | . . . Garrison Access . | . . . Terminal Hacks . | . . . Fabricator Hacks . | . . . Repair Station Hacks 7 | . 7 . Scan Component 4 | . 4 . Repair 3 | . 3 . Recycling Unit Hacks 2 | . 2 . Process 1 | . 1 . Retrieve Components 1 | . 1 . Scanalyzer . | . . . Garrison Access Hacks . | . . . Unauthorized Hacks . | . . . Terminals . | . . . Fabricators . | . . . Repair Stations . | . . . Recycling Units . | . . . Scanalyzers . | . . . Garrison Access . | . . . Data Cores Recovered . | . . . Used . | . . . Hacking Detections . | . . . Full Trace Events . | . . . Feedback Events . | . . . Feedback Blocked . | . . . Robot Schematics Acquired . | . . . Robots Built . | . . . Authchips . | . . . Time . | . . . Total Robot Build Rating . | . . . Part Schematics Acquired . | . . . Parts Built . | . . . Authchips . | . . . Time . | . . . Total Part Build Rating . | . . . Parts Repaired 3 | . 3 . Time 78 | . 78 . Parts Recycled . | . . . Recycled Matter 121 | . 121 . Retrieved Matter . | . . . Retrieved Components . | . . . Parts Scanalyzed . | . . . Part Schematics Acquired . | . . . Parts Damaged . | . . . Bothacking | -11 -10 -10 ------------ Run | Yrd Mat Min Used RIF Installer . | . . . Robots Hacked . | . . . Non-combat . | . . . Combat . | . . . Robot Hacks Applied . | . . . Relay Couplers Released . | . . . Fabnet Peak Effective % . | . . . Robots Rewired . | . . . Allies Hacked . | . . . Hacks Repelled . | . . . Allies | -11 -10 -10 -------- Run | Yrd Mat Min Total Allies . | . . . Largest Group . | . . . Highest-Rated Group . | . . . Highest-Rated Ally . | . . . Total Orders . | . . . Ally Attacks . | . . . Total Damage . | . . . Kills . | . . . Allies Corrupted . | . . . Allies Melted . | . . . Intel | -11 -10 -10 ------- Run | Yrd Mat Min Robot Analysis Total . | . . . Derelict Logs Recovered 1 | . . 1 Drone Launches . | . . . Drone Recoveries . | . . . Exploration | -11 -10 -10 ------------- Run | Yrd Mat Min Turns Passed 907 | 429 325 153 Spaces Moved 399 | 133 153 113 Core 34 | 34 . . Treads . | . . . Legs . | . . . Wheels 365 | 99 153 113 Hover . | . . . Flight . | . . . Fastest Speed 50 | 50 80 80 Average Speed 77 | 72 80 80 Slowest Speed 80 | 80 80 80 Overloaded Moves . | . . . Propulsion Burnouts . | . . . Robots Hopped . | . . . Cave-ins Triggered . | . . . Exploration Rate (%) 22 | 12 29 27 Regions Visited 2 Branch Regions 1 Pre-discovered Areas . | . . . Known Exits Taken . | . . . Unknown Exits Taken 2 | 1 1 . Scrap Searched 1 | . . 1 Spaces Dug . | . . . Terrain Destroyed . | . . . Melee . | . . . Projectile . | . . . AOE . | . . . Terrain Rammed . | . . . Walls Destroyed . | . . . Machines Disabled . | . . . Actions | -11 -10 -10 --------- Run | Yrd Mat Min Total 903 | 459 297 147 Wait 415 | 313 97 5 Move 397 | 132 152 113 Hop . | . . . Pick Up 21 | 6 9 6 Fast Attach 1 | . . 1 Attach 12 | 5 4 3 Detach . | . . . Swap 4 | . 3 1 Drop 4 | . 2 2 Fire 49 | 3 30 16 Melee . | . . . Ram . | . . . Kick . | . . . Crush . | . . . Escape Stasis . | . . . Rewire . | . . . Trap . | . . . Miscellaneous . | . . . Route ------- -11/Scrapyard -10/Materials -10/Mines History --------- Turn | Location | Event 2 | -11/Scrapyard | Met Revision 17 42 | -11/Scrapyard | Discovered new exit (range 8) 430 | -11/Scrapyard | Entered Materials 431 | -10/Materials | Build established: Mutant 588 | -10/Materials | Repaired Wheel 628 | -10/Materials | Repaired Wheel 694 | -10/Materials | Repaired Wheel 750 | -10/Materials | Discovered new exit (range 7) 755 | -10/Materials | Entered Mines 799 | -10/Mines | Found a hidden stash of uninstalled traps 835 | -10/Mines | Learned Materials stockpile data 862 | -10/Mines | Assembled infested the area 872 | -10/Mines | Core integrity fell below 50% 906 | -10/Mines | Core integrity fell below 20% 908 | -10/Mines | Destroyed by D-53 Grenadier with Mini Grenade Launcher Last Messages --------------- ALERT: Infestation in the mines, dispatching Demolisher response squad. as-09289 destroyed. Switching to secondary target: as-64769. as-64769 destroyed. Switching to secondary target: as-91961. Knocked back. Lgt. Ion Engine destroyed. System corrupted by crushing effect (+5). Knocked back. D-53 Grenadier unfolds itself. as-30891 destroyed. as-99093 destroyed. as-91698 destroyed. Lgt. Assault Rifle destroyed. Sml. Laser destroyed. as-36586 destroyed. Wheel destroyed. Dropped Blade Trap. as-10765 destroyed. Map ----- +----------------------------------------------------+ | ?????????????????????????????????????????????????? | | ?????????????????????????????????????????????????? | | ?????????????????????????????????????????????????? | | ?????????????????????????????????????????????????? | | ?????????????????????????????????????????????????? | | ?????????????????? ??????????????????????????????? | | ?????????????????? ??????????????????????????????? | | ?????????????????? ??????????????????????????????? | | ?????????????????? ??????????????????????????????? | | ??????????????????%??????????????????????????????? | | ??????????????????%??????????????????????????????? | | ?????????????????? ??????????????????????????????? | | ?????????????????# #?????????????????????????????? | | ?????????????????# #?????????????????????????????? | | ?????????????????# #?????????????????????????????? | | ?????????????????# #?????????????????????????????? | | ???????????###???# ?????????????????????????????? | | ???????#??## ##?# #?????????????????????????????? | | ???????# ## ### #?????????????????????????????? | | ???????? ## ###########???????????????????? | | ??????????# ## # # #???????????????????? | | ?????????## # #???????????????????? | | ????????## a ##??????????????????? | | ????#??## a #??????????????????? | | ???## ## """ # ##??????????????????? | | ??## """ #???# @ dd #??????????????????? | | ?## """ ##???# #????????????? | | ?# ##???## ##????????????? | | ?# ##???#########%#####?????????????? | | ?## ##????????????#?????????????????? | | ??## ##??????###????????????????????? | | ???## ### #??????# ??????###???????????? | | ????### #??## #??????# #??????# ?????#####?? | | ??????###????## ######## #??????# #????## ##? | | ??????????????# #??????# #?#### #? | | ?????????????## ######## #??????# #?# #? | | ??????????#### ######### ###????# #?# ## #? | | ?????????## % #??### ### ##%= #? | | ????????## %! #??# = = ##? | | ????????# ########### #??# ######## = *#?? | | ????????# ##??????#### #??# #??????## ##?? | | ????????# ###?######## #??# #???????####??? | | ????????## #????# #### ###???????????? | | ?????????###?????# #### #???????????? | | ?????????????????# #??# & #???????????? | | ?????????????????# #??# ##### #???????????? | | ?????????????????# #??## ## #?? #???????????? | | ????????????????? #???#######? ???????????? | | ?????????????????###??????????? ??????????? | | ??????????????????????????????? ?????????? | +----------------------------------------------------+ Best States ------------- Heat Dissipation 25 Energy Generation 10 Energy Capacity 125 Matter Stores 300 Matter Capacity 300 Sight Range 16 Terrain Scan Density 10 Core Shielding 20 Evasion (%) 50 Item Schematics ----------------- None Robot Schematics ------------------ None Fabricated ------------ Nothing Alien Tech Used ----------------- None Achievements -------------- None Challenges ------------ None Game ------ Seed WarpGodWarhead Manual? 0 Play Time 00:13:39 Cumulative 2.3 hours Start 2024.08.11 @ 18:07:24 End 2024.08.11 @ 18:21:39 Sessions 1 Manual Loads 0 Difficulty Rogue Special Mode None Game No. 3 Rogue 3 Adventurer 0 Explorer 0 Win Type - Total 0 Types 0/0/0/0/0/0/0/0/0 Lore% 0 Gallery% 3 Achievement% 3 Wizard Run 0 Options --------- Layout 1 ASCII 0 Keyboard 0 Movement Mouse Keybinds 0 Fullscreen 2 Font 32/SmallcapsGlow Map View 50x35 Zoom Use 0% Tactical HUD 0 Map Filters NONE Filters NONE Steam 1 RUN: 93f1293b-ca39-488b-88b8-bf7fd71971d3